Cogmind - Beta 13 @@@ ROGUE MODE // 2024.06.14 @ 00:23:07 Player: wojo Result: Destroyed by G-47 Trooper with Particle Gun Performance ------------- Evolutions (2) 1000 Regions Visited (6) 1200 Robots Destroyed (86) 430 Value Destroyed (2391) 2391 Prototype IDs (27) 540 Alien Tech Used (0) 0 Bonus (455) 455 TOTAL SCORE: 6016 Bonus ------- High Alert Combat Kills 155 Aligned with FarCom 300 Cogmind --------- Core Integrity 0/550 Matter 300/300 Energy 90/100 System Corruption 35% Temperature Cool (9) Movement Core (50) Location -8/Materials Parts ------- > --- POWER (2) -------- (None) > --- PROPULSION (3) --- (None) > --- UTILITY (4) ------ Improved Recalibrator > --- WEAPON (2) ------- (None) > --- INVENTORY (5) ---- (None) Peak State ------------ > --- POWER ------------ Light Nuclear Core > --- PROPULSION ------- Armored Treads Armored Treads Advanced Treads > --- UTILITY ---------- Improved Targeting Computer Improved Targeting Computer Improved Targeting Computer Advanced Targeting Computer > --- WEAPON ----------- Beamcaster Latent Energy Streamer > --- INVENTORY -------- Armored Treads Armored Treads Rocket Launcher Missile Launcher Katana [Rating: 37] Favorites ----------- Power Light Nuclear Core Engine Light Ion Engine Power Core Light Nuclear Core Propulsion Light Treads Treads Light Treads Leg Aluminum Leg Utility Hardened Medium Armor Plating Device Improved Heat Sink Storage Huge Storage Unit Processor Improved Targeting Computer Protection Hardened Medium Armor Plating Weapon Katana Energy Gun Small Laser Energy Cannon Latent Energy Streamer Ballistic Gun Assault Rifle Launcher Rocket Launcher Slashing Weapon Katana Build | -11 -10 -9 -9 -9 -8 -8 ------- Run | Yrd Mat Mat Min Exi Min Mat Slots Evolved 4 | . . 2 . . . 2 Power 1 | . . . . . . 1 Propulsion 1 | . . 1 . . . . Utility 2 | . . 1 . . . 1 Weapon . | . . . . . . . Parts Attached 79 | 5 9 35 4 2 . 24 Power 8 | 1 1 3 . . . 3 Engine 5 | 1 1 2 . . . 1 Core 3 | . . 1 . . . 2 Reactor . | . . . . . . . Propulsion 16 | 2 2 5 . . . 7 Treads 14 | 2 . 5 . . . 7 Leg 2 | . 2 . . . . . Wheel . | . . . . . . . Hover . | . . . . . . . Flight . | . . . . . . . Utility 23 | . 3 10 3 . . 7 Device 9 | . 2 3 2 . . 2 Storage 1 | . 1 . . . . . Processor 4 | . . . . . . 4 Hackware . | . . . . . . . Protection 9 | . . 7 1 . . 1 Artifact . | . . . . . . . Weapon 32 | 2 3 17 1 2 . 7 Energy Gun 12 | 1 3 5 . . . 3 Energy Cannon 2 | . . . . 1 . 1 Ballistic Gun 3 | 1 . 2 . . . . Ballistic Cannon . | . . . . . . . Launcher 6 | . . 3 1 . . 2 Special Weapon . | . . . . . . . Impact Weapon . | . . . . . . . Slashing Weapon 9 | . . 7 . 1 . 1 Piercing Weapon . | . . . . . . . Special Melee Weapon . | . . . . . . . Unidentified Prototypes 2 | . . 1 1 . . . Parts Lost 36 | . 5 8 . . 1 22 Power 4 | . . 1 . . . 3 Propulsion 9 | . 2 2 . . . 5 Utility 10 | . . 1 . . 1 8 Weapon 13 | . 3 4 . . . 6 Highest Loss Streak 11 | . 3 5 . . 1 11 To Critical Strikes 1 | . . . . . . 1 Average Slot Usage (%) 89 | . 71 92 99 100 79 81 Engine 2 | . 11 2 . . . . Core 7 | . . 7 11 11 11 7 Treads 24 | . 9 24 33 33 22 25 Leg 3 | . 9 4 . . . . Device 2 | . 10 2 . . . 1 Processor 4 | . . . . . . 25 Protection 22 | . . 29 32 33 24 4 Energy Gun 3 | . 20 2 . . . 5 Energy Cannon 1 | . . . . 4 11 5 Launcher 1 | . . . 5 1 . 2 Slashing Weapon 14 | . . 19 16 16 11 3 Naked Turns . | . . . . . . . Heaviest Build 88 | 7 88 88 35 41 41 33 Greatest Support 62 | 40 40 60 60 60 40 62 Greatest Overweight (x) 4 | 2 4 4 . . 1 . Average Overweight (x) . | . 1 . . . . . Largest Inventory Capacity 25 | 5 25 25 5 5 5 5 Average Capacity 5 | 5 10 5 5 5 5 5 Most Carried 5 | . 3 5 5 5 5 5 Average Carried 4 | . 1 4 4 5 5 3 Final Capacity 25 | 5 25 5 5 5 5 5 Final Carried 5 | . 2 5 5 5 5 . Class Distribution -------------------- 51% | Scavenger-Mutant 48% | Mutant Dominant Class ---------------- Mutant | -10/Materials Scavenger-Mutant | -9/Materials Scavenger-Mutant | -9/Mines Scavenger-Mutant | -9/Exiles Mutant | -8/Mines Mutant | -8/Materials Resources | -11 -10 -9 -9 -9 -8 -8 ----------- Run | Yrd Mat Mat Min Exi Min Mat Matter Collected 1205 | 172 128 513 55 . . 337 Remotely . | . . . . . . . Salvage Created 3375 | 55 390 1172 200 . 116 1442 Parts 178 | 4 26 71 13 . 4 60 Haulers Intercepted 5 | . 1 2 . . . 2 Recyclers Shooed 1 | . . 1 . . . . Parts Field Recycled . | . . . . . . . Retrieved Matter . | . . . . . . . Parts Self-Destructed . | . . . . . . . Prevented . | . . . . . . . Kills | -11 -10 -9 -9 -9 -8 -8 ------- Run | Yrd Mat Mat Min Exi Min Mat Combat Hostiles Destroyed 58 | . 9 19 6 . 2 22 Melee 28 | . . 14 6 . . 8 Guns 16 | . 9 3 . . . 4 AOE 12 | . . 2 . . 2 8 Classes Destroyed 15 | 2 4 6 1 . . 2 Worker 11 | 1 1 3 1 . . 5 Builder 2 | . . 1 . . . 1 Tunneler 2 | 2 . . . . . . Hauler 5 | . 1 2 . . . 2 Recycler 2 | . . 1 1 . . . Mechanic 1 | . . . . . . 1 Operator 3 | . . 1 . . . 2 Watcher 4 | . 1 3 . . . . Swarmer 7 | . 3 . 4 . . . Grunt 34 | . 6 11 . . 2 15 Brawler 5 | . . 2 . . . 3 Duelist 1 | . . 1 . . . . Sentry 7 | . . 5 . . . 2 Hunter 2 | . . . . . . 2 Assembled 2 | . . . 2 . . . Best Kill Streak 7 | 3 4 4 6 . 2 7 Combat Bots Only 4 | . 3 3 2 . 2 4 Max Kills in Single Turn 3 | 1 1 2 1 . 2 3 Gunslinging . | . . . . . . . Exploded 2 | . . 1 . . 2 2 Melee 1 | . . 1 1 . . 1 Uniques/NPCs Destroyed . | . . . . . . . Combat | -11 -10 -9 -9 -9 -8 -8 -------- Run | Yrd Mat Mat Min Exi Min Mat Hostile Shots Fired 505 | . 80 146 31 . 15 233 Missed 113 | . 14 39 7 . 1 52 Damage Taken 5960 | . 743 1500 421 . 224 3072 Core 1045 | . 203 231 53 . . 558 Absorbed by Shields . | . . . . . . . Regen/Repaired (Parts) 475 | . . 426 . . . 49 Core Remaining (%) 49 | 100 18 . . . 29 . Volleys Fired 122 | 6 50 12 . . 2 52 Largest 2 | 2 2 2 . . 1 2 Hottest 111 | 70 105 100 . . 60 111 Shots Fired 172 | 12 78 24 . . 1 57 Gun 156 | 12 78 21 . . . 45 Cannon 6 | . . . . . 1 5 Launcher 10 | . . 3 . . . 7 Special . | . . . . . . . Kinetic 30 | 6 24 . . . . . Thermal 109 | 6 54 4 . . . 45 Explosive 10 | . . 3 . . . 7 Electromagnetic 23 | . . 17 . . 1 5 Robot Hit Streak 19 | 4 8 5 . . 2 19 Robot Miss Streak 3 | 1 3 2 . . . 2 Penetration Max . | . . . . . . . Secondary Targets 1 | . . 1 . . . . Max Gunslinging Chain 1 | . . 1 . . . . Shots Hit Robots 233 | 8 49 78 15 . 7 76 Core Hits 119 | 4 19 32 7 . 7 50 Critical Kills . | . . . . . . . Critical Parts Destroyed . | . . . . . . . Critical Strikes 18 | . 1 6 . . 1 10 Burn 10 | . 1 . . . . 9 Corrupt 1 | . . 1 . . . . Sever 7 | . . 5 . . 1 1 Melee Attacks 152 | . . 77 22 . 9 44 Impact . | . . . . . . . Slashing 152 | . . 77 22 . 9 44 Piercing . | . . . . . . . Sneak Attacks 13 | . . 10 2 . . 1 Combat Hostiles . | . . . . . . . Follow-up Attacks 20 | . . 16 4 . . . Damage Inflicted 8033 | 129 669 2728 596 . 323 3588 Guns 1833 | 100 665 243 . . . 825 Cannons 31 | . . . . . 8 23 Explosions 2173 | . . 202 . . 133 1838 Melee 3922 | . . 2259 596 . 182 885 Ramming 74 | 29 4 24 . . . 17 Kinetic 204 | 51 153 . . . . . Thermal 1445 | 49 512 59 . . . 825 Explosive 651 | . . 176 . . . 475 Electromagnetic 1737 | . . 210 . . 141 1386 Impact . | . . . . . . . Slashing 3922 | . . 2259 596 . 182 885 Piercing . | . . . . . . . Highest Corruption 35 | . 7 4 4 4 6 35 Average Corruption 5 | . 6 3 4 4 6 12 Corruption Purged . | . . . . . . . Corruption Blocked . | . . . . . . . Effects 145 | . 12 65 15 7 5 41 Message Errors 29 | . 1 11 4 3 1 9 Matter Fused 34 | . 2 20 2 1 . 9 Heat Flow Errors 19 | . 2 8 2 1 1 5 Energy Discharges 24 | . . 13 2 . 1 8 Parts Rejected 2 | . 1 . . . 1 . Parts Fused 2 | . . . 1 . . 1 Data Loss (minor) 12 | . 3 6 2 1 . . Data Loss (major) 10 | . 1 6 2 . . 1 Misfires 1 | . . . . . . 1 Alerts 6 | . . 1 . 1 . 4 Weapon Failures 6 | . 2 . . . 1 3 Overload Shots . | . . . . . . . Overflow Damage 165 | . . 104 21 . 17 23 Projectiles . | . . . . . . . Explosions . | . . . . . . . Melee 165 | . . 104 21 . 17 23 Knockbacks 3 | 2 1 . . . . . Impact 3 | 2 1 . . . . . Kinetic . | . . . . . . . Secondary . | . . . . . . . Self-Inflicted Damage 158 | . . 47 . . . 111 Shots 5 | . . 1 . . . 4 Rammed 45 | 28 2 3 . . . 12 Targets Rammed 47 | 28 3 4 . . . 12 Kicked 1 | . . 1 . . . . Crushed 1 | . 1 . . . . . Highest Temperature 377 | 45 155 377 194 202 265 268 Average Temperature 93 | 20 43 112 105 102 136 62 Received Heat Transfer 2370 | . 360 597 9 . 126 1278 Effects 7 | . . 7 . . . . Shutdowns 1 | . . 1 . . . . Energy Bleed 4 | . . 4 . . . . Interference 2 | . . 2 . . . . Siege Activations . | . . . . . . . Robots Corrupted 3 | . . . . . . 3 Combat Hostiles 2 | . . . . . . 2 Parts Fried 11 | . . . . . . 11 Impact Corruptions . | . . . . . . . Robots Melted . | . . . . . . . Combat Hostiles . | . . . . . . . Parts Melted 10 | . 3 . . . . 7 Heat Transferred 3744 | 148 1325 125 . . . 2146 Parts Sabotaged . | . . . . . . . Parts Stolen . | . . . . . . . Parts Stripped . | . . . . . . . Power Chain Reactions 2 | . . 1 . . . 1 Latent Energy Used 872 | . . . . . 73 799 LE Corruption 14 | . . . . . 2 12 Alert | -11 -10 -9 -9 -9 -8 -8 ------- Run | Yrd Mat Mat Min Exi Min Mat Peak Influence 620 | 15 228 224 218 . 55 620 Initial 73 | . . 17 73 . . 21 Average 161 | . 97 132 121 . 53 368 Maximum Alert Level 2 | . 1 1 1 . . 2 Low Security (%) 72 | 100 85 85 56 . 100 21 Level 1 17 | . 14 14 43 . . 24 Level 2 10 | . . . . . . 54 Level 3 . | . . . . . . . Level 4 . | . . . . . . . Level 5 . | . . . . . . . High Security . | . . . . . . . Max Security . | . . . . . . . Squads Dispatched 8 | . 2 1 . . . 5 Investigation 2 | . 1 . . . . 1 Extermination . | . . . . . . . Reinforcement 5 | . 1 1 . . . 3 Assault 1 | . . . . . . 1 Garrison . | . . . . . . . Intercept . | . . . . . . . Searches Triggered . | . . . . . . . Construction Impeded 1 | . . . . . . 1 Haulers Reinforced . | . . . . . . . Active Scanning Responses . | . . . . . . . Cargo Convoy Interrupts . | . . . . . . . Stealth | -11 -10 -9 -9 -9 -8 -8 --------- Run | Yrd Mat Mat Min Exi Min Mat Distress Signals 3 | . 1 . . . . 2 Communications Jammed . | . . . . . . . Distress Signals . | . . . . . . . Times Spotted 120 | . 22 38 14 . 1 45 Peak Tracking Total 15 | . 4 5 15 . 1 10 Tactical Retreats 13 | . 2 5 1 . 1 4 Traps | -11 -10 -9 -9 -9 -8 -8 ------- Run | Yrd Mat Mat Min Exi Min Mat Traps Triggered 5 | . 5 . . . . . Indirectly . | . . . . . . . Trap Hack Attempts . | . . . . . . . Triggered . | . . . . . . . Disarmed . | . . . . . . . Reprogrammed . | . . . . . . . Reused . | . . . . . . . Traps Extracted . | . . . . . . . Installed . | . . . . . . . Triggered 1 | . . . . . . 1 Machines | -11 -10 -9 -9 -9 -8 -8 ---------- Run | Yrd Mat Mat Min Exi Min Mat Machines Disabled 5 | . . . . . . 5 Max in Single Turn 2 | . . . . . . 2 Machines Repaired . | . . . . . . . Machines Dismantled . | . . . . . . . Machines Sabotaged . | . . . . . . . Overloaded Fab Kills . | . . . . . . . Hacking | -11 -10 -9 -9 -9 -8 -8 --------- Run | Yrd Mat Mat Min Exi Min Mat Machines Accessed 14 | . 1 9 . 1 . 3 Terminals 8 | . 1 5 . . . 2 Fabricators . | . . . . . . . Repair Stations 2 | . . 1 . . . 1 Recycling Units 1 | . . 1 . . . . Scanalyzers 2 | . . 2 . . . . Garrison Access . | . . . . . . . Total Hacks 43 | . 8 27 . 1 . 7 Successful 29 | . 1 24 . 1 . 3 Failed 14 | . 7 3 . . . 4 Catastrophic 2 | . . . . . . 2 Database Lockouts . | . . . . . . . Manual 1 | . . . . 1 . . Terminals 19 | . 8 8 . . . 3 Fabricators . | . . . . . . . Repair Stations 11 | . . 7 . . . 4 Recycling Units 2 | . . 2 . . . . Scanalyzers 10 | . . 10 . . . . Garrison Access . | . . . . . . . Terminal Hacks 11 | . 1 8 . 1 . 1 Prototype ID Bank 1 | . . 1 . . . . Scanalyzer Index 1 | . . 1 . . . . Alert Level 2 | . . 2 . . . . Locate Traps 3 | . . 2 . . . 1 Hauler Manifests 1 | . . 1 . . . . Registered Prototypes 1 | . 1 . . . . . Zone Layout 1 | . . 1 . . . . Derelict Proto ID Bank 1 | . . . . 1 . . Fabricator Hacks . | . . . . . . . Repair Station Hacks 8 | . . 6 . . . 2 Scan Component 4 | . . 3 . . . 1 Repair 4 | . . 3 . . . 1 Recycling Unit Hacks 1 | . . 1 . . . . Report Inventory 1 | . . 1 . . . . Scanalyzer 9 | . . 9 . . . . Insert Component 4 | . . 4 . . . . Analyze 5 | . . 5 . . . . Garrison Access Hacks . | . . . . . . . Unauthorized Hacks . | . . . . . . . Terminals . | . . . . . . . Fabricators . | . . . . . . . Repair Stations . | . . . . . . . Recycling Units . | . . . . . . . Scanalyzers . | . . . . . . . Garrison Access . | . . . . . . . Data Cores Recovered 2 | . . 1 . . . 1 Used 2 | . . 1 . . . 1 Hacking Detections 5 | . 1 1 . . . 3 Full Trace Events 2 | . 1 . . . . 1 Feedback Events . | . . . . . . . Feedback Blocked . | . . . . . . . Robot Schematics Acquired . | . . . . . . . Robots Built . | . . . . . . . Authchips . | . . . . . . . Time . | . . . . . . . Total Robot Build Rating . | . . . . . . . Part Schematics Acquired 4 | . . 4 . . . . Parts Built . | . . . . . . . Authchips . | . . . . . . . Time . | . . . . . . . Total Part Build Rating . | . . . . . . . Parts Repaired 4 | . . 3 . . . 1 Time 152 | . . 114 . . . 38 Parts Recycled . | . . . . . . . Recycled Matter . | . . . . . . . Retrieved Matter . | . . . . . . . Retrieved Components . | . . . . . . . Parts Scanalyzed 4 | . . 4 . . . . Part Schematics Acquired 4 | . . 4 . . . . Parts Damaged . | . . . . . . . Bothacking | -11 -10 -9 -9 -9 -8 -8 ------------ Run | Yrd Mat Mat Min Exi Min Mat Used RIF Installer . | . . . . . . . Robots Hacked . | . . . . . . . Non-combat . | . . . . . . . Combat . | . . . . . . . Robot Hacks Applied . | . . . . . . . Relay Couplers Released . | . . . . . . . Fabnet Peak Effective % . | . . . . . . . Robots Rewired . | . . . . . . . Allies Hacked . | . . . . . . . Hacks Repelled . | . . . . . . . Allies | -11 -10 -9 -9 -9 -8 -8 -------- Run | Yrd Mat Mat Min Exi Min Mat Total Allies . | . . . . . . . Largest Group . | . . . . . . . Highest-Rated Group . | . . . . . . . Highest-Rated Ally . | . . . . . . . Total Orders . | . . . . . . . Ally Attacks . | . . . . . . . Total Damage . | . . . . . . . Kills . | . . . . . . . Allies Corrupted . | . . . . . . . Allies Melted . | . . . . . . . Intel | -11 -10 -9 -9 -9 -8 -8 ------- Run | Yrd Mat Mat Min Exi Min Mat Robot Analysis Total . | . . . . . . . Derelict Logs Recovered 2 | . . . 2 . . . Drone Launches . | . . . . . . . Drone Recoveries . | . . . . . . . Exploration | -11 -10 -9 -9 -9 -8 -8 ------------- Run | Yrd Mat Mat Min Exi Min Mat Turns Passed 6401 | 411 527 3143 593 465 153 1109 Spaces Moved 3203 | 229 212 1599 320 289 77 477 Core 106 | 26 80 . . . . . Treads 2814 | 203 76 1372 320 289 77 477 Legs 283 | . 56 227 . . . . Wheels . | . . . . . . . Hover . | . . . . . . . Flight . | . . . . . . . Fastest Speed 50 | 50 50 120 160 160 160 160 Average Speed 163 | 149 178 163 160 160 166 166 Slowest Speed 400 | 160 400 400 160 160 240 170 Overloaded Moves . | . . . . . . . Propulsion Burnouts . | . . . . . . . Robots Hopped . | . . . . . . . Cave-ins Triggered . | . . . . . . . Exploration Rate (%) 46 | 13 29 79 66 61 32 44 Regions Visited 6 Branch Regions 3 Pre-discovered Areas 1 | . . . 1 . . . Known Exits Taken . | . . . . . . . Unknown Exits Taken 6 | 1 1 1 1 1 1 . Scrap Searched 1 | . . . 1 . . . Spaces Dug . | . . . . . . . Terrain Destroyed 184 | . . 25 . . . 159 Melee . | . . . . . . . Projectile . | . . . . . . . AOE 184 | . . 25 . . . 159 Terrain Rammed . | . . . . . . . Walls Destroyed . | . . . . . . . Machines Disabled . | . . . . . . . Actions | -11 -10 -9 -9 -9 -8 -8 --------- Run | Yrd Mat Mat Min Exi Min Mat Total 3956 | 267 278 2004 374 291 87 655 Wait 313 | . . 246 29 . . 38 Move 3197 | 228 211 1598 319 288 76 477 Hop . | . . . . . . . Pick Up 28 | . 4 19 1 . . 4 Fast Attach 48 | 5 7 23 3 1 . 9 Attach 15 | . 2 3 . . . 10 Detach 2 | . . 1 . . . 1 Swap 16 | . . 9 1 1 . 5 Drop 39 | . 1 30 4 1 . 3 Fire 122 | 6 50 12 . . 2 52 Melee 129 | . . 59 17 . 9 44 Ram . | . . . . . . . Kick 1 | . . 1 . . . . Crush 46 | 28 3 3 . . . 12 Escape Stasis . | . . . . . . . Rewire . | . . . . . . . Trap . | . . . . . . . Miscellaneous . | . . . . . . . Route ------- -11/Scrapyard -10/Materials (discovered 2 exits: *Mat / [*Min]) -9/Materials (discovered 4 exits: *Mat x2 / [*Min] / [*Sto]) -9/Mines (discovered 2 exits: *Mat / *Exi) -9/Exiles -8/Mines -8/Materials (discovered 1 exit: Fac) History --------- Turn | Location | Event 10 | -11/Scrapyard | Discovered new exit (range 16) 412 | -11/Scrapyard | Entered Materials 413 | -10/Materials | Build established: Mutant 583 | -10/Materials | Discovered new exit (range 10) 606 | -10/Materials | Core integrity fell below 50% 634 | -10/Materials | Lost 3 parts (2n1w) 752 | -10/Materials | Core integrity fell below 20% 860 | -10/Materials | Discovered new exit (range 8) 939 | -10/Materials | Entered another Materials area 939 | -9/Materials | Evolved 2 slots: Propulsion x1, Utility x1 1124 | -9/Materials | Build established: Scavenger-Mutant 1258 | -9/Materials | Lost 5 parts (1p1n3w) 1490 | -9/Materials | Build established: Mutant 1874 | -9/Materials | Core integrity fell below 50% 2033 | -9/Materials | Discovered new exit (range 9) 2107 | -9/Materials | Discovered new exit (range 7) 2238 | -9/Materials | Discovered new exit (range 5) 2329 | -9/Materials | Repaired Hrd. Medium Armor Plating 2367 | -9/Materials | Repaired Hrd. Medium Armor Plating 2407 | -9/Materials | Repaired Hrd. Medium Armor Plating 2555 | -9/Materials | Build established: Scavenger-Mutant 3607 | -9/Materials | Discovered new exit (range 15) 4082 | -9/Materials | Entered Mines 4098 | -9/Mines | Met a Derelict bent on vengeance 4148 | -9/Mines | Learned location of Zion (-7) 4236 | -9/Mines | Received a Rocket Launcher from a helpful Derelict 4321 | -9/Mines | Discovered new exit (range 4) 4339 | -9/Mines | Assembled infested the area 4470 | -9/Mines | Found a damaged Exp. Sensor Array with a note attached 4486 | -9/Mines | Found Prototype Device 4486 | -9/Mines | Identified Exp. Sensor Array 4505 | -9/Mines | Learned location of 1 exit from Materials 4665 | -9/Mines | Discovered new exit (range 5) 4675 | -9/Mines | Entered Exiles 4715 | -9/Exiles | Met 8R-AWN 4743 | -9/Exiles | Met EX-HEX 4792 | -9/Exiles | Met EX-BIN 4818 | -9/Exiles | Aligned with FarCom system 4819 | -9/Exiles | Given EX-Vault access code 4936 | -9/Exiles | Opened EX-Vault 4948 | -9/Exiles | Found Latent Energy Streamer 4985 | -9/Exiles | Warned to stay clear of 0b10 Research branches 5033 | -9/Exiles | Met EX-DEC 5119 | -9/Exiles | Discovered new exit (range 14) 5140 | -9/Exiles | Left Exiles lab with Latent Energy Streamer 5140 | -9/Exiles | Entered Mines 5257 | -8/Mines | Discovered new exit (range 10) 5293 | -8/Mines | Entered Materials 5293 | -8/Materials | Evolved 2 slots: Power x1, Utility x1 5294 | -8/Materials | Identified exit to Factory 5446 | -8/Materials | Build established: Mutant 5578 | -8/Materials | System corruption reached 10% 5639 | -8/Materials | Repaired Lgt. Nuclear Core 6093 | -8/Materials | First assault squad dispatched 6192 | -8/Materials | Lost 3 parts (1p1n1w) 6254 | -8/Materials | Core integrity fell below 50% 6268 | -8/Materials | Lost 3 parts (2n1u) 6321 | -8/Materials | System corruption reached 30% 6367 | -8/Materials | Core integrity fell below 20% 6402 | -8/Materials | Destroyed by G-47 Trooper with Particle Gun Last Messages --------------- 06338_ Acquired 16 matter. 06339_ B-36 Bruiser suffers critical hit (Burn). 06341_ Hammer melted. 06341_ Lgt. Treads melted. 06341_ B-36 Bruiser destroyed. 06342_ Lgt. Treads destroyed. 06351_ Slammed into Y-45 Defender. 06354_ Lgt. Nuclear Core destroyed. 06355_ SGSHB4X>5H6XETRVVPFWXD8/IXTIQ1DV 06355_ Slammed into Y-45 Defender. 06363_ Arm. Treads destroyed. 06368_ Slammed into Y-45 Defender. 06369_ Hvy. Laser destroyed. 06370_ System corrupted: Arm. Treads fused. 06370_ Slammed into Y-45 Defender. 06385_ M-13 Machinist repairs Y-45 Defender. 06396_ Adv. Heat Sink destroyed. 06402_ System corrupted: Substantial component data lost. 06402_ Discarded Arm. Treads. Map ----- +----------------------------------------------------+ | ??????????????# #???????# % ##??? | | ??????????????# #???????# ! ##??? | | ??????????????# #???????# #" "##"T"# #*%*##??? | | ??????????????# #???????# #"R"##"""# %# % ## | | ??????????????# #???????# #"""########%#= *#%### | | ??????????????# #???????# #####????## =#%! #=[ = | | ?????????##### #???????# #?????????## # # ] | | ?????????# T #???????# #??????????# # # | | ?????????# #???????# #??????????# # + | | ?????????# #??????##Y ############## # | | ????##???#= #??????# = =% == =%[ # | | ????# #### % ??????# ############# ##### | | ??? # !!= ! ####??# #????######## #???? | | # """" #!!%! % #??# w #????# #% #???? | | # """" # =!! = #???#g #????#""" # #???? | | ? """" # #???##g####????#""" / %#???? | | ?? ###### ####????# #???????#""" # #???? | | ?? """" #?#### ###????## ##??????# # #???? | | ? """" ### = #????## ##??????# # #???? | | ? """" =/% | =% #????## ##??????######## #???? | | # ##### ! #???# # ##?????????????# #???? | | #####/######### ###### # ##?????????????# #???? | | ??? ??+ !## ##?????????????# #???? | | ? ???# # #* ## ##?????????????# #???? | | ?????#= "" + # ## #??????????#???# #???? | | #??????# """ # # ##@#????????! #???# #???? | | ???????# S??# + "Y" ## #??????**! #???# #???? | | ???????# ????# # """ ## #???? *!! #???# #???? | | ???????#+##### ######%### #???# #???? | | ????# + #???# #???? | | ???????# ##### # #### #%# # #???? ????? | | ??????????????# #?????### ###??##/####???????????? | | ??????????????# #???????# #??????????????????????? | | ??????????????# #???????# #??????????????????????? | | ??????????????# #???????# ??????????????????????? | | ??????????????# #???????# #??????????????????????? | | ??????????????# #???????# #??????????????????????? | | ??????????????? ????????# #??????????????????????? | | ??????????????? ????????? ???????????????????????? | | ??????????????? ????????? ???????????????????????? | | ??????????????? ????????? ???????????????????????? | | ??????????????? ????????? ???????????????????????? | | ??????????????? ????????? ???????????????????????? | | ??????????????? ????????? ???????????????????????? | | ????????????????????????? ???????????????????????? | | ?????????????????????????????????????????????????? | | ?????????????????????????????????????????????????? | | ?????????????????????????????????????????????????? | | ?????????????????????????????????????????????????? | | ?????????????????????????????????????????????????? | +----------------------------------------------------+ Best States ------------- Heat Dissipation 50 Energy Generation 14 Energy Capacity 265 Matter Stores 300 Matter Capacity 300 Sight Range 16 Terrain Scan Range 16 Terrain Scan Density 10 Armor Coverage 675 Evasion (%) 55 Targeting Accuracy 26 Recoil Reduction 3 Particle Charging 22 Item Schematics ----------------- Hrd. Medium Armor Plating | -9/Materials | Scanalyzed Katana | -9/Materials | Scanalyzed Imp. Targeting Computer | -9/Materials | Scanalyzed Rocket Launcher | -9/Materials | Scanalyzed Robot Schematics ------------------ None Fabricated ------------ Nothing Alien Tech Used ----------------- None Achievements -------------- None Challenges ------------ None Game ------ Seed TripodSupersonicHammer Manual? 0 Play Time 00:54:24 Cumulative 32.5 hours Start 2024.06.13 @ 23:27:00 End 2024.06.14 @ 00:23:07 Sessions 1 Manual Loads 0 Difficulty Rogue Special Mode None Game No. 55 Rogue 55 Adventurer 0 Explorer 0 Win Type - Total 0 Types 0/0/0/0/0/0/0/0/0 Lore% 23 Gallery% 28 Achievement% 21 Wizard Run 0 Options --------- Layout 1 ASCII 0 Keyboard 0 Movement Arrows Keybinds 0 Fullscreen 1 Font 16/SmallcapsGlow Map View 50x40 Zoom Use 0% Tactical HUD 1 Map Filters NONE Filters NONE Steam SD RUN: e6f5c5ec-5ae9-4cdf-8a3f-e2bd3f2e3523